fUST/lending_fUST_20250628
["ID","MTS","AMOUNT","RATE_DAILY","PERIOD"]
[368296149,1751098246540,-737.92100894,0.000213,2]
[368296150,1751098246550,-168.0,0.00021301,2]
[368296151,1751098246559,-1500.0,0.0002131,2]
[368296152,1751098246569,-8729.47272585,0.00021348,5]
[368296153,1751098246578,-168.0,0.00021351,2]
[368296154,1751098246588,-500.0,0.00021369,16]
[368296155,1751098246598,-460.0,0.00021369,2]
[368296156,1751098246609,-618.67,0.00021369,2]
[368296157,1751098246619,-571.21259143,0.00021369,2]
[368296158,1751098246629,-1424.45,0.00021369,2]
[368296159,1751098246639,-3358.86,0.00021369,2]
[368296160,1751098246649,-387.19136063,0.00021369,2]
[368296161,1751098246658,-521.75,0.00021369,2]
[368296162,1751098246668,-470.66,0.00021369,2]
[368296163,1751098246678,-533.15,0.00021369,2]
[368296164,1751098246687,-1224.18,0.00021369,2]
[368296165,1751098246697,-1170.58,0.00021369,2]
[368296166,1751098246707,-2112.2,0.00021369,2]
[368296167,1751098246717,-1851.67,0.00021369,2]
[368296168,1751098246730,-460.0,0.00021369,2]
[368296169,1751098246740,-573.0,0.00021369,2]
[368296170,1751098246750,-573.53,0.00021369,2]
[368296171,1751098246759,-854.84,0.00021369,2]
[368296172,1751098246769,-460.0,0.00021369,2]
[368296173,1751098246779,-460.0,0.00021369,2]
[368296174,1751098246788,-1098.47,0.00021369,2]
[368296175,1751098246798,-460.0,0.00021369,2]
[368296176,1751098246808,-460.0,0.00021369,2]
[368296177,1751098246818,-555.3,0.00021369,2]
[368296178,1751098246828,-798.27,0.00021369,2]
[368296179,1751098246838,-1973.72,0.00021369,2]
[368296180,1751098246847,-460.0,0.00021369,2]
[368296181,1751098246857,-460.0,0.00021369,2]
[368296182,1751098246867,-1934.81,0.00021369,2]
[368296183,1751098246877,-2153.52,0.00021369,2]
[368296184,1751098246887,-2311.91,0.00021369,2]
[368296185,1751098246897,-483.36,0.00021369,2]
[368296186,1751098246908,-460.0,0.00021369,2]
[368296187,1751098246918,-460.0,0.00021369,2]
[368296188,1751098246928,-460.0,0.00021369,2]
[368296189,1751098246937,-460.0,0.00021369,2]
[368296190,1751098246947,-460.0,0.00021369,2]
[368296191,1751098246957,-3011.3,0.00021369,2]
[368296192,1751098246967,-460.0,0.00021369,2]
[368296193,1751098246978,-460.0,0.00021369,2]
[368296194,1751098246989,-1183.74,0.00021369,2]
[368296195,1751098246999,-828.51,0.00021369,2]
[368296196,1751098247008,-460.0,0.00021369,2]
[368296197,1751098247018,-331.83573595,0.00021369,2]
[368296198,1751098247027,-1911.89,0.00021369,2]
[368296199,1751098247036,-534.48,0.00021369,2]
[368296200,1751098247046,-661.26,0.00021369,2]
[368296201,1751098247055,-404.43270557,0.00021369,2]
[368296202,1751098247064,-511.0,0.00021369,2]
[368296203,1751098247074,-1315.52,0.00021369,2]
[368296204,1751098247084,-460.0,0.00021369,2]
[368296205,1751098247094,-460.0,0.00021369,2]
[368296206,1751098247103,-629.96,0.00021369,2]
[368296207,1751098247115,-460.0,0.00021369,2]
[368296208,1751098247124,-1461.29,0.00021369,2]
[368296209,1751098247133,-460.0,0.00021369,2]
[368296210,1751098247142,-460.0,0.00021369,2]
[368296211,1751098247151,-5000.0,0.00021391,2]
[368296212,1751098247161,-472.98,0.00021397,2]
[368296213,1751098247170,-2000.0,0.00021419,2]
[368296214,1751098247180,-168.0,0.00021441,2]
[368296215,1751098247189,-177.41445,0.00021495,6]
[368296216,1751098247198,-168.0,0.00021504,2]
[368296217,1751098247207,-212.9,0.00021518,4]
[368296218,1751098247217,-500.0,0.00021536,2]
[368296219,1751098247227,-500.0,0.00021536,2]
[368296220,1751098247236,-501.47258747,0.00021536,2]
[368296221,1751098247246,-500.0,0.00021536,2]
[368296222,1751098247255,-500.0,0.00021536,2]
[368296223,1751098247265,-500.0,0.00021536,2]
[368296224,1751098247274,-500.0,0.00021536,2]
[368296225,1751098247283,-501.12105409,0.00021536,2]
[368296226,1751098247293,-600.0,0.00021536,2]
[368296227,1751098247302,-500.0,0.00021536,2]
[368296228,1751098247311,-500.0,0.00021536,2]
[368296229,1751098247320,-563.71744148,0.00021536,2]
[368296230,1751098247331,-500.0,0.00021536,2]
[368296231,1751098247341,-160.0,0.00021537,4]
[368296232,1751098247351,-413.815039,0.0002156,4]
[368296233,1751098247360,-8729.47272585,0.0002159,5]
[368296234,1751098247369,-168.0,0.00021602,2]
[368296235,1751098247379,-163297.23951948,0.00021642,2]
[368296236,1751098247709,-768.73,0.00021369,2]
[368296237,1751098247719,-6506.8582708,0.00021642,2]
[368296238,1751098247792,-293.00176164,0.00021642,2]
[368296240,1751098361430,271.74399,0.00013699,2]
[368296241,1751099015614,2831.0,0.000181,2]
[368296243,1751099224586,511.64,0.000198,30]
[368296244,1751099232106,-300.0,0.00018175,2]
[368296245,1751099232132,-363.13752756,0.00018176,2]
[368296248,1751099329201,315.596954,0.00013699,2]
[368296274,1751099431811,-300.0,0.00018175,2]
[368296276,1751099431823,-136.86247244,0.00018176,2]
[368296278,1751099431833,-650.0,0.00018176,2]
[368296280,1751099431842,-500.0,0.00018176,2]
[368296283,1751099431853,-500.0,0.00018176,2]
[368296285,1751099431863,-500.0,0.00018176,2]
[368296287,1751099431872,-500.0,0.00018176,2]
[368296289,1751099431882,-500.0,0.00018176,2]
[368296292,1751099431891,-500.0,0.00018176,2]
[368296296,1751099431902,-500.0,0.00018176,2]
[368296298,1751099431913,-500.0,0.00018176,2]
[368296300,1751099431922,-500.0,0.00018176,2]
[368296302,1751099431932,-246.25031784,0.00018176,2]
[368296342,1751099437956,-253.74968216,0.00018176,2]
[368296343,1751099437967,-500.0,0.00018176,2]
[368296344,1751099437976,-529.3844,0.00018176,2]
[368296345,1751099437987,-500.0,0.00018176,2]
[368296346,1751099437997,-24900.0,0.00018177,2]
[368296347,1751099438007,-460.10090176,0.000189,2]
[368296348,1751099438017,-381.31500132,0.00019068,2]
[368296349,1751099438026,-525.77,0.00019168,3]
[368296350,1751099438047,-262.89,0.00019168,3]
[368296351,1751099438057,-788.67,0.00019168,3]
[368296352,1751099438067,-500.0,0.00019173,2]
[368296353,1751099438077,-503.50287125,0.00019173,2]
[368296354,1751099438087,-504.67766264,0.00019173,2]
[368296355,1751099438097,-14503.37209341,0.00019176,3]
[368296356,1751099438107,-847.18566335,0.00019176,3]
[368296357,1751099438117,-12564.78152626,0.00019176,3]
[368296358,1751099438127,-213.78848551,0.00019176,3]
[368296359,1751099438137,-445.38903473,0.00019177,2]
[368296360,1751099438147,-460.0,0.00019178,2]
[368296361,1751099438157,-275.27516672,0.00019178,2]
[368296362,1751099438166,-460.0,0.00019178,2]
[368296363,1751099438176,-460.0,0.00019178,2]
[368296364,1751099438186,-460.0,0.00019178,2]
[368296365,1751099438195,-460.0,0.00019178,2]
[368296366,1751099438205,-460.0,0.00019178,2]
[368296367,1751099438215,-460.0,0.00019178,2]
[368296368,1751099438225,-460.0,0.00019178,2]
[368296369,1751099438235,-201.07813599,0.00019178,2]
[368296370,1751099438245,-525.31220112,0.00019178,2]
[368296371,1751099438254,-460.0,0.00019178,2]
[368296372,1751099438263,-460.0,0.00019178,2]
[368296373,1751099438273,-460.0,0.00019178,2]
[368296374,1751099438283,-460.0,0.00019178,2]
[368296375,1751099438292,-460.0,0.00019178,2]
[368296376,1751099438302,-460.0,0.00019178,2]
[368296377,1751099438312,-500.0,0.00019178,2]
[368296378,1751099438321,-460.0,0.00019178,2]
[368296379,1751099438331,-288.25951505,0.00019178,2]
[368296380,1751099438341,-500.0,0.00019178,2]
[368296381,1751099438351,-460.0,0.00019178,2]
[368296382,1751099438361,-501.29288824,0.00019178,2]
[368296383,1751099438371,-466.69796809,0.00019178,2]
[368296384,1751099438380,-460.0,0.00019178,2]
[368296385,1751099438389,-503.09125633,0.00019178,2]
[368296386,1751099438399,-511.32868189,0.00019178,2]
[368296387,1751099438408,-460.0,0.00019178,2]
[368296388,1751099438418,-460.0,0.00019178,2]
[368296389,1751099438427,-460.0,0.00019178,2]
[368296390,1751099438439,-502.15560378,0.00019178,2]
[368296391,1751099438449,-502.55189658,0.00019178,2]
[368296392,1751099438458,-500.0,0.00019178,2]
[368296393,1751099438468,-460.0,0.00019178,2]
[368296394,1751099438478,-460.0,0.00019178,2]
[368296395,1751099438488,-500.0,0.00019178,2]
[368296396,1751099438497,-500.0,0.00019178,2]
[368296397,1751099438507,-460.0,0.00019178,2]
[368296398,1751099438516,-460.0,0.00019178,2]
[368296399,1751099438526,-501.49900631,0.00019178,2]
[368296400,1751099438536,-500.0,0.00019178,2]
[368296401,1751099438545,-460.0,0.00019178,2]
[368296402,1751099438556,-460.0,0.00019178,2]
[368296403,1751099438565,-460.0,0.00019178,2]
[368296404,1751099438576,-460.0,0.00019178,2]
[368296405,1751099438586,-500.0,0.00019178,2]
[368296406,1751099438596,-500.0,0.00019178,2]
[368296407,1751099438608,-460.0,0.00019178,2]
[368296408,1751099438619,-282.48156557,0.00019178,2]
[368296409,1751099438628,-460.0,0.00019178,2]
[368296410,1751099438638,-501.97969396,0.00019178,2]
[368296411,1751099438652,-500.0,0.00019178,2]
[368296412,1751099438663,-500.0,0.00019178,2]
[368296413,1751099438672,-501.77942504,0.00019178,2]
[368296414,1751099438682,-460.0,0.00019178,2]
[368296415,1751099438692,-502.25311211,0.00019178,2]
[368296416,1751099438701,-500.0,0.00019178,2]
[368296417,1751099438711,-501.70708872,0.00019178,2]
[368296418,1751099438721,-501.47639758,0.00019178,2]
[368296419,1751099438730,-460.0,0.00019178,2]
[368296420,1751099438740,-504.2986761,0.00019178,2]
[368296421,1751099438750,-501.16330138,0.00019178,2]
[368296422,1751099438760,-506.95847133,0.00019178,2]
[368296423,1751099438770,-600.03144902,0.00019178,2]
[368296424,1751099438780,-460.0,0.00019178,2]
[368296425,1751099438790,-501.7794354,0.00019178,2]
[368296426,1751099438800,-460.0,0.00019178,2]
[368296427,1751099438811,-460.0,0.00019178,2]
[368296428,1751099438821,-460.0,0.00019178,2]
[368296429,1751099438831,-207.40520911,0.00019178,2]
[368296430,1751099438841,-501.7598767,0.00019178,2]
[368296431,1751099438851,-460.0,0.00019178,2]
[368296432,1751099438861,-500.0,0.00019178,2]
[368296433,1751099438871,-500.0,0.00019178,2]
[368296434,1751099438881,-500.0,0.00019178,2]
[368296435,1751099438891,-289.8429959,0.00019178,2]
[368296436,1751099438901,-460.0,0.00019178,2]
[368296437,1751099438913,-500.0,0.00019178,2]
[368296438,1751099438923,-460.0,0.00019178,2]
[368296439,1751099438933,-460.0,0.00019178,2]
[368296440,1751099438943,-501.22047992,0.00019178,2]
[368296441,1751099438952,-460.0,0.00019178,2]
[368296442,1751099438962,-460.0,0.00019178,2]
[368296443,1751099438971,-504.00795028,0.00019178,2]
[368296444,1751099438982,-460.0,0.00019178,2]
[368296445,1751099438992,-500.0,0.00019178,2]
[368296446,1751099439003,-500.0,0.00019178,2]
[368296447,1751099439012,-500.0,0.00019178,2]
[368296448,1751099439022,-460.0,0.00019178,2]
[368296449,1751099439031,-460.0,0.00019178,2]
[368296450,1751099439042,-460.0,0.00019178,2]
[368296451,1751099439052,-460.0,0.00019178,2]
[368296452,1751099439062,-500.0,0.00019178,2]
[368296453,1751099439071,-460.0,0.00019178,2]
[368296454,1751099439081,-169.11041344,0.00019178,2]
[368296455,1751099439091,-273.07965014,0.00019178,2]
[368296456,1751099439103,-500.0,0.00019178,2]
[368296457,1751099439113,-502.28229201,0.00019178,2]
[368296458,1751099439123,-460.0,0.00019178,2]
[368296459,1751099439132,-460.0,0.00019178,2]
[368296460,1751099439141,-530.47109823,0.00019178,2]
[368296461,1751099439151,-460.0,0.00019178,2]
[368296462,1751099439161,-460.0,0.00019178,2]
[368296463,1751099439170,-500.0,0.00019178,2]
[368296464,1751099439180,-460.0,0.00019178,2]
[368296465,1751099439190,-500.0,0.00019178,2]
[368296466,1751099439199,-460.0,0.00019178,2]
[368296467,1751099439209,-500.0,0.00019178,2]
[368296468,1751099439219,-500.0,0.00019178,2]
[368296469,1751099439229,-500.0,0.00019178,2]
[368296470,1751099439238,-500.0,0.00019178,2]
[368296471,1751099439248,-500.0,0.00019178,2]
[368296472,1751099439258,-500.0,0.00019178,2]
[368296473,1751099439267,-500.0,0.00019178,2]
[368296474,1751099439277,-500.0,0.00019178,2]
[368296475,1751099439286,-460.0,0.00019178,2]
[368296476,1751099439296,-500.0,0.00019178,2]
[368296477,1751099439305,-500.0,0.00019178,2]
[368296478,1751099439315,-500.0,0.00019178,2]
[368296479,1751099439324,-460.0,0.00019178,2]
[368296480,1751099439333,-500.0,0.00019178,2]
[368296481,1751099439344,-460.0,0.00019178,2]
[368296482,1751099439354,-500.0,0.00019178,2]
[368296483,1751099439364,-460.0,0.00019178,2]
[368296484,1751099439374,-460.0,0.00019178,2]
[368296486,1751099439384,-500.0,0.00019178,2]
[368296487,1751099439394,-500.0,0.00019178,2]
[368296488,1751099439406,-500.0,0.00019178,2]
[368296489,1751099439416,-500.0,0.00019178,2]
[368296490,1751099439425,-460.0,0.00019178,2]
[368296491,1751099439434,-500.0,0.00019178,2]
[368296492,1751099439444,-665.9,0.00019178,2]
[368296493,1751099439453,-460.0,0.00019178,2]
[368296494,1751099439463,-460.0,0.00019178,2]
[368296495,1751099439472,-500.0,0.00019178,2]
[368296497,1751099439481,-500.0,0.00019178,2]
[368296499,1751099439491,-500.0,0.00019178,2]
[368296501,1751099439500,-460.0,0.00019178,2]
[368296503,1751099439510,-500.0,0.00019178,2]
[368296505,1751099439520,-500.0,0.00019178,2]
[368296507,1751099439529,-500.0,0.00019178,2]
[368296509,1751099439538,-460.0,0.00019178,2]
[368296511,1751099439548,-500.80169665,0.00019178,2]
[368296513,1751099439557,-500.0,0.00019178,2]
[368296515,1751099439567,-500.0,0.00019178,2]
[368296517,1751099439577,-460.0,0.00019178,2]
[368296519,1751099439587,-500.0,0.00019178,2]
[368296521,1751099439596,-500.0,0.00019178,2]
[368296523,1751099439606,-500.0,0.00019178,2]
[368296524,1751099439615,-500.0,0.00019178,2]
[368296526,1751099439625,-504.93797022,0.00019178,2]
[368296528,1751099439634,-460.0,0.00019178,2]
[368296530,1751099439643,-460.0,0.00019178,2]
[368296532,1751099439653,-594.33930361,0.00019178,2]
[368296534,1751099439662,-500.0,0.00019178,2]
[368296536,1751099439671,-460.0,0.00019178,2]
[368296539,1751099439681,-460.0,0.00019178,2]
[368296541,1751099439690,-460.0,0.00019178,2]
[368296543,1751099439699,-460.0,0.00019178,2]
[368296545,1751099439709,-460.0,0.00019178,2]
[368296547,1751099439719,-460.0,0.00019178,2]
[368296549,1751099439728,-500.0,0.00019178,2]
[368296551,1751099439737,-500.0,0.00019178,2]
[368296552,1751099439746,-460.0,0.00019178,2]
[368296554,1751099439755,-500.0,0.00019178,2]
[368296556,1751099439765,-500.0,0.00019178,2]
[368296558,1751099439774,-500.0,0.00019178,2]
[368296561,1751099439785,-460.0,0.00019178,2]
[368296563,1751099439794,-460.0,0.00019178,2]
[368296565,1751099439804,-460.0,0.00019178,2]
[368296567,1751099439813,-500.95771854,0.00019178,2]
[368296569,1751099439823,-500.0,0.00019178,2]
[368296571,1751099439832,-500.0,0.00019178,2]
[368296573,1751099439842,-460.0,0.00019178,2]
[368296575,1751099439851,-460.0,0.00019178,2]
[368296577,1751099439860,-460.0,0.00019178,2]
[368296579,1751099439870,-460.0,0.00019178,2]
[368296580,1751099439879,-1543.49,0.00019178,2]
[368296581,1751099439889,-203.47464642,0.00019178,2]
[368296582,1751099439899,-460.0,0.00019178,2]
[368296584,1751099439909,-460.0,0.00019178,2]
[368296586,1751099439920,-460.0,0.00019178,2]
[368296588,1751099439930,-460.0,0.00019178,2]
[368296590,1751099439939,-500.0,0.00019178,2]
[368296592,1751099439949,-460.0,0.00019178,2]
[368296594,1751099439960,-500.0,0.00019178,2]
[368296596,1751099439969,-206.09494749,0.00019178,2]
[368296598,1751099439979,-500.0,0.00019178,2]
[368296600,1751099439989,-500.0,0.00019178,2]
[368296602,1751099439998,-500.0,0.00019178,2]
[368296604,1751099440008,-500.0,0.00019178,2]
[368296606,1751099440017,-460.0,0.00019178,2]
[368296607,1751099440027,-467.44599598,0.00019178,2]
[368296609,1751099440037,-460.0,0.00019178,2]
[368296611,1751099440046,-501.5485114,0.00019178,2]
[368296613,1751099440056,-460.0,0.00019178,2]
[368296615,1751099440065,-460.0,0.00019178,2]
[368296617,1751099440076,-3923.5,0.00019178,2]
[368296619,1751099440085,-500.0,0.00019178,2]
[368296621,1751099440095,-460.0,0.00019178,2]
[368296623,1751099440103,-460.0,0.00019178,2]
[368296625,1751099440113,-502.4987371,0.00019178,2]
[368296627,1751099440122,-500.0,0.00019178,2]
[368296629,1751099440132,-509.41589042,0.00019178,2]
[368296631,1751099440141,-500.0,0.00019178,2]
[368296633,1751099440152,-460.0,0.00019178,2]
[368296635,1751099440161,-460.0,0.00019178,2]
[368296637,1751099440170,-500.0,0.00019178,2]
[368296639,1751099440180,-460.0,0.00019178,2]
[368296641,1751099440190,-1515.01,0.00019178,2]
[368296643,1751099440200,-510.77186579,0.00019178,2]
[368296645,1751099440209,-1385.81,0.00019178,2]
[368296647,1751099440219,-503.16157959,0.00019178,2]
[368296649,1751099440228,-500.0,0.00019178,2]
[368296651,1751099440238,-500.0,0.00019178,2]
[368296653,1751099440247,-460.0,0.00019178,2]
[368296655,1751099440257,-467.6999882,0.00019178,2]
[368296658,1751099440268,-460.0,0.00019178,2]
[368296660,1751099440277,-500.0,0.00019178,2]
[368296662,1751099440288,-460.0,0.00019178,2]
[368296664,1751099440298,-460.0,0.00019178,2]
[368296666,1751099440307,-1204.35,0.00019178,2]
[368296668,1751099440316,-500.0,0.00019178,2]
[368296670,1751099440325,-460.0,0.00019178,2]
[368296672,1751099440335,-2302.16,0.00019178,2]
[368296673,1751099440345,-460.0,0.00019178,2]
[368296675,1751099440354,-500.0,0.00019178,2]
[368296677,1751099440363,-507.07,0.00019178,2]
[368296679,1751099440372,-500.0,0.00019178,2]
[368296681,1751099440382,-460.0,0.00019178,2]
[368296683,1751099440392,-676.15,0.00019178,2]
[368296685,1751099440402,-460.0,0.00019178,2]
[368296688,1751099440411,-460.0,0.00019178,2]
[368296690,1751099440420,-460.0,0.00019178,2]
[368296692,1751099440430,-500.0,0.00019178,2]
[368296694,1751099440439,-502.75295438,0.00019178,2]
[368296696,1751099440449,-500.0,0.00019178,2]
[368296698,1751099440459,-460.0,0.00019178,2]
[368296700,1751099440468,-557.87,0.00019178,2]
[368296702,1751099440477,-2187.52,0.00019178,2]
[368296704,1751099440486,-460.0,0.00019178,2]
[368296713,1751099440636,-500.0,0.00019178,2]
[368296714,1751099440646,-705.88,0.00019178,2]
[368296715,1751099440655,-500.0,0.00019178,2]
[368296716,1751099440664,-503.52799086,0.00019178,2]
[368296717,1751099440674,-382.00034945,0.00019178,2]
[368296718,1751099440683,-460.0,0.00019178,2]
[368296719,1751099440692,-503.95491979,0.00019178,2]
[368296720,1751099440702,-460.0,0.00019178,2]
[368296721,1751099440711,-460.0,0.00019178,2]
[368296722,1751099440720,-500.0,0.00019178,2]
[368296723,1751099440730,-460.0,0.00019178,2]
[368296724,1751099440739,-460.0,0.00019178,2]
[368296725,1751099440749,-650.49,0.00019178,2]
[368296726,1751099440758,-460.0,0.00019178,2]
[368296727,1751099440767,-460.0,0.00019178,2]
[368296728,1751099440776,-1308.12,0.00019178,2]
[368296729,1751099440786,-548.96853011,0.00019178,2]
[368296730,1751099440796,-460.0,0.00019178,2]
[368296731,1751099440805,-460.0,0.00019178,2]
[368296732,1751099440814,-460.0,0.00019178,2]
[368296733,1751099440823,-460.0,0.00019178,2]
[368296734,1751099440833,-558.93,0.00019178,2]
[368296735,1751099440842,-460.0,0.00019178,2]
[368296736,1751099440852,-950.27,0.00019178,2]
[368296737,1751099440861,-460.0,0.00019178,2]
[368296738,1751099440870,-460.0,0.00019178,2]
[368296739,1751099440879,-460.0,0.00019178,2]
[368296740,1751099440888,-481.03,0.00019178,2]
[368296741,1751099440897,-460.0,0.00019178,2]
[368296742,1751099440910,-460.0,0.00019178,2]
[368296743,1751099440920,-500.0,0.00019178,2]
[368296744,1751099440931,-189.39,0.00019178,2]
[368296745,1751099440940,-500.0,0.00019178,2]
[368296746,1751099440951,-500.0,0.00019178,2]
[368296747,1751099440960,-460.0,0.00019178,2]
[368296748,1751099440970,-460.0,0.00019178,2]
[368296749,1751099440979,-460.0,0.00019178,2]
[368296750,1751099440989,-501.65417121,0.00019178,2]
[368296751,1751099440999,-2224.44,0.00019178,2]
[368296752,1751099441008,-460.0,0.00019178,2]
[368296753,1751099441018,-915.82,0.00019178,2]
[368296754,1751099441027,-460.0,0.00019178,2]
[368296755,1751099441037,-460.0,0.00019178,2]
[368296756,1751099441046,-460.0,0.00019178,2]
[368296757,1751099441056,-2092.47,0.00019178,2]
[368296758,1751099441065,-460.0,0.00019178,2]
[368296759,1751099441076,-460.0,0.00019178,2]
[368296760,1751099441085,-460.0,0.00019178,2]
[368296761,1751099441096,-500.0,0.00019178,2]
[368296762,1751099441105,-460.0,0.00019178,2]
[368296763,1751099441115,-169.44709953,0.00019178,2]
[368296764,1751099441125,-460.0,0.00019178,2]
[368296765,1751099441134,-460.0,0.00019178,2]
[368296766,1751099441143,-460.0,0.00019178,2]
[368296767,1751099441152,-500.0,0.00019178,2]
[368296768,1751099441161,-500.0,0.00019178,2]
[368296769,1751099441170,-460.0,0.00019178,2]
[368296770,1751099441179,-500.0,0.00019178,2]
[368296771,1751099441189,-500.0,0.00019178,2]
[368296772,1751099441198,-460.0,0.00019178,2]
[368296773,1751099441207,-460.0,0.00019178,2]
[368296774,1751099441216,-460.0,0.00019178,2]
[368296775,1751099441226,-500.0,0.00019178,2]
[368296776,1751099441235,-2722.65,0.00019178,2]
[368296777,1751099441245,-2287.45,0.00019178,2]
[368296778,1751099441254,-460.0,0.00019178,2]
[368296779,1751099441263,-500.0,0.00019178,2]
[368296780,1751099441272,-460.0,0.00019178,2]
[368296781,1751099441282,-460.0,0.00019178,2]
[368296782,1751099441292,-197.19615459,0.00019178,2]
[368296783,1751099441302,-460.0,0.00019178,2]
[368296784,1751099441311,-460.0,0.00019178,2]
[368296785,1751099441321,-460.0,0.00019178,2]
[368296786,1751099441331,-525.54,0.00019178,2]
[368296787,1751099441341,-3380.33,0.00019178,2]
[368296788,1751099441351,-460.0,0.00019178,2]
[368296789,1751099441360,-460.0,0.00019178,2]
[368296790,1751099441369,-469.96,0.00019178,2]
[368296791,1751099441378,-460.0,0.00019178,2]
[368296792,1751099441387,-500.0,0.00019178,2]
[368296793,1751099441396,-460.0,0.00019178,2]
[368296794,1751099441406,-156.34295851,0.00019178,2]
[368296795,1751099441415,-460.0,0.00019178,2]
[368296796,1751099441424,-460.0,0.00019178,2]
[368296797,1751099441434,-460.0,0.00019178,2]
[368296798,1751099441443,-460.0,0.00019178,2]
[368296799,1751099441452,-500.92910665,0.00019178,2]
[368296800,1751099441462,-460.0,0.00019178,2]
[368296801,1751099441470,-460.0,0.00019178,2]
[368296802,1751099441480,-460.0,0.00019178,2]
[368296803,1751099441489,-460.0,0.00019178,2]
[368296804,1751099441498,-501.40392675,0.00019178,2]
[368296805,1751099441507,-460.0,0.00019178,2]
[368296806,1751099441516,-1368.9,0.00019178,2]
[368296807,1751099441526,-1309.53,0.00019178,2]
[368296808,1751099441535,-2136.66,0.00019178,2]
[368296809,1751099441544,-460.0,0.00019178,2]
[368296810,1751099441553,-500.0,0.00019178,2]
[368296811,1751099441563,-779.1,0.00019178,2]
[368296812,1751099441572,-460.0,0.00019178,2]
[368296813,1751099441581,-460.0,0.00019178,2]
[368296814,1751099441591,-500.0,0.00019178,2]
[368296815,1751099441600,-291.04696635,0.00019178,2]
[368296816,1751099441610,-460.0,0.00019178,2]
[368296817,1751099441619,-922.04,0.00019178,2]
[368296818,1751099441629,-460.0,0.00019178,2]
[368296819,1751099441639,-500.0,0.00019178,2]
[368296820,1751099441648,-502.3383654,0.00019178,2]
[368296821,1751099441658,-478.18911306,0.00019178,2]
[368296822,1751099441667,-460.0,0.00019178,2]
[368296823,1751099441676,-500.0,0.00019178,2]
[368296824,1751099441685,-460.0,0.00019178,2]
[368296825,1751099441694,-460.0,0.00019178,2]
[368296826,1751099441704,-592.63932121,0.00019178,2]
[368296827,1751099441713,-460.0,0.00019178,2]
[368296828,1751099441722,-207.69931827,0.00019178,2]
[368296829,1751099441731,-504.16370565,0.00019178,2]
[368296830,1751099441740,-460.0,0.00019178,2]
[368296831,1751099441749,-450.45525534,0.00019178,2]
[368296832,1751099441758,-1000.0,0.00019178,2]
[368296833,1751099441767,-508.85361603,0.00019178,2]
[368296834,1751099441776,-1476.74,0.00019178,2]
[368296835,1751099441786,-460.0,0.00019178,2]
[368296836,1751099441794,-573.62,0.00019178,2]
[368296837,1751099441804,-501.27316925,0.00019178,2]
[368296838,1751099441814,-460.0,0.00019178,2]
[368296839,1751099441823,-460.0,0.00019178,2]
[368296840,1751099441832,-460.0,0.00019178,2]
[368296841,1751099441841,-460.0,0.00019178,2]
[368296842,1751099441851,-460.0,0.00019178,2]
[368296843,1751099441860,-500.0,0.00019178,2]
[368296844,1751099441870,-533.01,0.00019178,2]